Cogmind - Beta 12 @@@ ROGUE MODE // 2023.12.30 @ 14:23:23 Player: Rohain Result: Destroyed by G-34 Mercenary with Small Laser Performance ------------- Evolutions (0) 0 Regions Visited (1) 200 Robots Destroyed (10) 50 Value Destroyed (302) 302 Prototype IDs (0) 0 Alien Tech Used (0) 0 Bonus (0) 0 TOTAL SCORE: 552 Bonus ------- None Cogmind --------- Core Integrity 0/250 Matter 299/300 Energy 100/100 System Corruption 0% Temperature Warm (189) Movement Core (200) Ox3 Location -10/Materials Parts ------- > --- POWER (1) -------- (None) > --- PROPULSION (2) --- (None) > --- UTILITY (2) ------ Medium Storage Unit Weapon Shielding > --- WEAPON (2) ------- Small Laser > --- INVENTORY (10) --- Small Storage Unit Light Assault Rifle Mini Grenade Launcher Peak State ------------ > --- POWER ------------ Light Ion Engine > --- PROPULSION ------- Aluminum Leg Aluminum Leg > --- UTILITY ---------- Medium Storage Unit Weapon Shielding > --- WEAPON ----------- EM Pulse Gun Mini Grenade Launcher > --- INVENTORY -------- Light Ion Engine Small Storage Unit Small Laser Light Assault Rifle [Rating: 8] Favorites ----------- Power Light Ion Engine Engine Light Ion Engine Propulsion Aluminum Leg Leg Aluminum Leg Utility Weapon Shielding Storage Small Storage Unit Protection Weapon Shielding Weapon EM Pulse Gun Energy Gun EM Pulse Gun Launcher Mini Grenade Launcher Build | -11 -10 ------- Run | Jun Mat Slots Evolved . | . . Power . | . . Propulsion . | . . Utility . | . . Weapon . | . . Parts Attached 11 | 5 6 Power 2 | . 2 Engine 2 | . 2 Core . | . . Reactor . | . . Propulsion 2 | 2 . Treads . | . . Leg 2 | 2 . Wheel . | . . Hover . | . . Flight . | . . Utility 3 | 1 2 Device . | . . Storage 2 | 1 1 Processor . | . . Hackware . | . . Protection 1 | . 1 Artifact . | . . Weapon 4 | 2 2 Energy Gun 3 | 2 1 Energy Cannon . | . . Ballistic Gun . | . . Ballistic Cannon . | . . Launcher 1 | . 1 Special Weapon . | . . Impact Weapon . | . . Slashing Weapon . | . . Piercing Weapon . | . . Special Melee Weapon . | . . Unidentified Prototypes . | . . Parts Lost 5 | . 5 Power 2 | . 2 Propulsion 2 | . 2 Utility . | . . Weapon 1 | . 1 Highest Loss Streak 4 | . 4 To Critical Strikes . | . . Average Slot Usage (%) 97 | . 97 Engine 13 | . 13 Leg 26 | . 26 Storage 14 | . 14 Protection 14 | . 14 Energy Gun 26 | . 26 Launcher 1 | . 1 Naked Turns . | . . Heaviest Build 17 | 8 17 Greatest Support 20 | 20 20 Greatest Overweight (x) . | . . Average Overweight (x) . | . . Largest Inventory Capacity 10 | 8 10 Average Capacity 8 | 6 9 Most Carried 5 | 5 5 Average Carried 2 | 2 3 Final Capacity 10 | 8 10 Final Carried 3 | 3 3 Class Distribution -------------------- 100% | Mutant Dominant Class ---------------- Mutant | -10/Materials Resources | -11 -10 ----------- Run | Jun Mat Matter Collected 324 | 226 98 Remotely . | . . Salvage Created 300 | . 300 Parts 16 | . 16 Haulers Intercepted . | . . Recyclers Shooed . | . . Parts Field Recycled . | . . Retrieved Matter . | . . Parts Self-Destructed . | . . Prevented . | . . Kills | -11 -10 ------- Run | Jun Mat Combat Hostiles Destroyed 8 | . 8 Guns 7 | . 7 AOE 1 | . 1 Classes Destroyed 4 | . 4 Builder 1 | . 1 Operator 1 | . 1 Swarmer 1 | . 1 Grunt 7 | . 7 Best Kill Streak 8 | . 8 Combat Bots Only 6 | . 6 Max Kills in Single Turn 2 | . 2 Gunslinging . | . . Exploded 1 | . 1 Melee . | . . Uniques/NPCs Destroyed . | . . Combat | -11 -10 -------- Run | Jun Mat Damage Taken 699 | . 699 Core 250 | . 250 Absorbed by Shields . | . . Redirected to Shielding 39 | . 39 Core Remaining (%) 100 | 100 . Volleys Fired 28 | . 28 Largest 2 | . 2 Hottest 80 | . 80 Shots Fired 51 | . 51 Gun 47 | . 47 Cannon . | . . Launcher 4 | . 4 Special . | . . Kinetic . | . . Thermal 24 | . 24 Explosive 4 | . 4 Electromagnetic 23 | . 23 Robot Hit Streak 6 | . 6 Robot Miss Streak 5 | . 5 Penetration Max . | . . Secondary Targets 3 | . 3 Max Gunslinging Chain 1 | . 1 Shots Hit Robots 26 | . 26 Core Hits 16 | . 16 Critical Kills . | . . Critical Parts Destroyed . | . . Critical Strikes . | . . Melee Attacks . | . . Impact . | . . Slashing . | . . Piercing . | . . Sneak Attacks . | . . Combat Hostiles . | . . Follow-up Attacks . | . . Damage Inflicted 696 | . 696 Guns 323 | . 323 Cannons . | . . Explosions 373 | . 373 Melee . | . . Ramming . | . . Kinetic . | . . Thermal 259 | . 259 Explosive 281 | . 281 Electromagnetic 156 | . 156 Impact . | . . Slashing . | . . Piercing . | . . Highest Corruption . | . . Average Corruption . | . . Corruption Purged . | . . Corruption Blocked . | . . Overload Shots . | . . Overflow Damage . | . . Projectiles . | . . Explosions . | . . Melee . | . . Knockbacks . | . . Impact . | . . Kinetic . | . . Secondary . | . . Self-Inflicted Damage 45 | . 45 Shots 2 | . 2 Rammed . | . . Targets Rammed . | . . Kicked . | . . Crushed . | . . Highest Temperature 263 | . 263 Average Temperature 99 | . 99 Received Heat Transfer 324 | . 324 Siege Activations . | . . Robots Corrupted . | . . Combat Hostiles . | . . Parts Fried . | . . Impact Corruptions . | . . Robots Melted . | . . Combat Hostiles . | . . Parts Melted 1 | . 1 Heat Transferred 525 | . 525 Parts Sabotaged . | . . Parts Stolen . | . . Parts Stripped . | . . Power Chain Reactions 2 | . 2 Missiles Intercepted . | . . Alert | -11 -10 ------- Run | Jun Mat Peak Influence 291 | . 291 Initial . | . . Average 69 | . 88 Maximum Alert Level 1 | . 1 Low Security (%) 78 | 100 72 Level 1 21 | . 27 Level 2 . | . . Level 3 . | . . Level 4 . | . . Level 5 . | . . High Security . | . . Max Security . | . . Squads Dispatched 3 | . 3 Investigation 1 | . 1 Extermination . | . . Reinforcement 2 | . 2 Assault . | . . Garrison . | . . Intercept . | . . Searches Triggered . | . . Construction Impeded . | . . Haulers Reinforced . | . . Active Scanning Responses . | . . Cargo Convoy Interrupts . | . . Stealth | -11 -10 --------- Run | Jun Mat Distress Signals 1 | . 1 Communications Jammed . | . . Distress Signals . | . . Times Spotted 16 | . 16 Peak Tracking Total 8 | . 8 Tactical Retreats . | . . Traps | -11 -10 ------- Run | Jun Mat Traps Triggered . | . . Indirectly . | . . Trap Hack Attempts . | . . Triggered . | . . Disarmed . | . . Reprogrammed . | . . Reused . | . . Traps Extracted . | . . Installed . | . . Triggered 1 | . 1 Machines | -11 -10 ---------- Run | Jun Mat Machines Disabled 2 | . 2 Max in Single Turn 1 | . 1 Machines Repaired . | . . Machines Sabotaged . | . . Overloaded Fab Kills . | . . Hacking | -11 -10 --------- Run | Jun Mat Machines Accessed . | . . Terminals . | . . Fabricators . | . . Repair Stations . | . . Recycling Units . | . . Scanalyzers . | . . Garrison Access . | . . Total Hacks . | . . Successful . | . . Failed . | . . Catastrophic . | . . Database Lockouts . | . . Manual . | . . Terminals . | . . Fabricators . | . . Repair Stations . | . . Recycling Units . | . . Scanalyzers . | . . Garrison Access . | . . Terminal Hacks . | . . Fabricator Hacks . | . . Repair Station Hacks . | . . Recycling Unit Hacks . | . . Scanalyzer . | . . Garrison Access Hacks . | . . Unauthorized Hacks . | . . Terminals . | . . Fabricators . | . . Repair Stations . | . . Recycling Units . | . . Scanalyzers . | . . Garrison Access . | . . Data Cores Recovered . | . . Used . | . . Hacking Detections . | . . Full Trace Events . | . . Feedback Events . | . . Feedback Blocked . | . . Robot Schematics Acquired . | . . Robots Built . | . . Authchips . | . . Time . | . . Total Robot Build Rating . | . . Part Schematics Acquired . | . . Parts Built . | . . Authchips . | . . Time . | . . Total Part Build Rating . | . . Parts Repaired . | . . Time . | . . Parts Recycled . | . . Recycled Matter . | . . Retrieved Matter . | . . Retrieved Components . | . . Parts Scanalyzed . | . . Part Schematics Acquired . | . . Parts Damaged . | . . Bothacking | -11 -10 ------------ Run | Jun Mat Used RIF Installer . | . . Robots Hacked . | . . Non-combat . | . . Combat . | . . Robot Hacks Applied . | . . Relay Couplers Released . | . . Fabnet Peak Effective % . | . . Robots Rewired . | . . Allies Hacked . | . . Hacks Repelled . | . . Allies | -11 -10 -------- Run | Jun Mat Total Allies . | . . Largest Group . | . . Highest-Rated Group . | . . Highest-Rated Ally . | . . Total Orders . | . . Ally Attacks . | . . Total Damage . | . . Kills . | . . Allies Corrupted . | . . Allies Melted . | . . Intel | -11 -10 ------- Run | Jun Mat Robot Analysis Total . | . . Derelict Logs Recovered . | . . Drone Launches . | . . Drone Recoveries . | . . Exploration | -11 -10 ------------- Run | Jun Mat Turns Passed 325 | 70 255 Spaces Moved 195 | 56 139 Core 11 | 11 . Treads . | . . Legs 184 | 45 139 Wheels . | . . Hover . | . . Flight . | . . Fastest Speed 50 | 50 120 Average Speed 116 | 106 120 Slowest Speed 120 | 120 120 Overloaded Moves . | . . Propulsion Burnouts . | . . Robots Hopped . | . . Cave-ins Triggered . | . . Exploration Rate (%) 18 | 4 33 Regions Visited 1 Branch Regions . Pre-discovered Areas . | . . Known Exits Taken . | . . Unknown Exits Taken 1 | 1 . Scrap Searched . | . . Spaces Dug . | . . Terrain Destroyed 45 | . 45 Melee . | . . Projectile . | . . AOE 45 | . 45 Terrain Rammed . | . . Walls Destroyed . | . . Machines Disabled . | . . Actions | -11 -10 --------- Run | Jun Mat Total 240 | 65 175 Wait . | . . Move 194 | 55 139 Hop . | . . Pick Up 6 | 5 1 Fast Attach 4 | 3 1 Attach 5 | 2 3 Detach 1 | . 1 Swap 2 | . 2 Drop . | . . Fire 28 | . 28 Melee . | . . Ram . | . . Kick . | . . Crush . | . . Escape Stasis . | . . Rewire . | . . Trap . | . . Miscellaneous . | . . Route ------- -11/Junkyard -10/Materials History --------- Turn | Location | Event 21 | -11/Junkyard | Discovered new exit (range 16) 71 | -11/Junkyard | Entered Materials 255 | -10/Materials | Core integrity fell below 50% 306 | -10/Materials | Build established: Mutant 318 | -10/Materials | Core integrity fell below 20% 326 | -10/Materials | Destroyed by G-34 Mercenary with Small Laser Last Messages --------------- 00277_ Acquired 15 matter. 00281_ U-05 Engineer builds a Wall. 00290_ U-05 Engineer lays Concrete. 00293_ U-05 Engineer builds a Wall. 00293_ U-05 Engineer lays Concrete. 00297_ K-01 Serf collects debris. 00303_ G-34 Mercenary misfires. 00305_ K-01 Serf collects debris. 00310_ G-34 Mercenary destroyed. 00310_ Switching to secondary target: G-34 Mercenary. 00311_ Aluminum Leg destroyed. 00313_ K-01 Serf collects debris. 00315_ Aluminum Leg destroyed. 00315_ EM Pulse Gun destroyed. 00316_ K-01 Serf collects debris. 00317_ Lgt. Ion Engine destroyed. 00320_ K-01 Serf collects debris. 00320_ Sml. Laser melted. 00320_ G-34 Mercenary destroyed. 00323_ K-01 Serf collects debris. Map ----- +----------------------------------------------------+ | ?????????????????????????????? """ ?? ?????????? | | ?????????????????????????????? """ ?? ?????????? | | ?????????????????????????????? ?? ?????????? | | ??????????????????????????????# ##? ?????????? | | ???????????????????????????#### # #?|?????????? | | ??????????????????????????## # ## ?? ?????????? | | ??????????????????????????? # ?# #????????? | | ??????????????????############### ###?# ########## | | ????????????????? ##?# ## | | ????????????????? % ##?# ## """ T | | ????????????????? %% ##?# ## """ | | ????????????????????????#######" ##?# ## """ ! | | ??????????????????????########" ### ## | | ??????????????????????# "% ## """ | | ??????????????????????# """ " + """ | | ??????????????????????# "R # ## """ | | ??????????????????????# """ # ## | | ??????????????????????# # #######+## | | ??????????????????????# """ # | | ???????????? ????????# """ # | | ????????????? ??????# """ # %%" | | ??????????????# ????# " %%" ######+# | | ??????????????# #######+#### "%" #??????# | | ??????????????# g=* k +??????# | | ??????????????+ g[= w ##??????# | | ??????????????# t%*@ r #???????# | | ??????????????# ##/##################???????# | | ??????????????## ???# ??????????????????????????# | | ????????????????????#???????????????????????????# | | ????????????????????????????????????????????????# | | ??????????????????????????????????#####?????????# | | ??????????????????????????????????#]] #?????????# | | ??????????????????????????????????#] #?????????# | | ??????????????????????????????????#// #?????????# | | ??????????????????????????????????#// ########### | | ??????????????????????????????????#== | | ??????????????????????????????????#== | | ??????????????????????????????????##### | | ??????????????????????????????????????# | | ??????????????????????????????????????# ########## | | ??????????????????????????????????????# # # | | ??????????????????????????????????????# # """ + | | ??????????????????????????????????????# # "Y" # | | ??????????????????????????????????????# + # | | ??????????????????????????????????????# # # | | ??????????????????????????????????????# # """ # | | ??????????????????????????????????????# + """ # | | ??????????????????????????????????????### """ # | | ????????????????????????????????????????# # | | ????????????????????????????????????????########## | +----------------------------------------------------+ Best States ------------- Heat Dissipation 25 Energy Generation 10 Energy Capacity 125 Matter Stores 299 Matter Capacity 300 Sight Range 16 Terrain Scan Density 10 Weapon Shielding 33 Evasion (%) 55 Item Schematics ----------------- None Robot Schematics ------------------ None Fabricated ------------ Nothing Alien Tech Used ----------------- None Achievements -------------- None Challenges ------------ None Game ------ Seed ActivePhysicsThruster Manual? 0 Play Time 00:03:10 Cumulative 53.4 hours Start 2023.12.30 @ 14:21:07 End 2023.12.30 @ 14:23:23 Sessions 1 Manual Loads 0 Difficulty Rogue Special Mode None Game No. 89 Rogue 73 Adventurer 16 Explorer 0 Win Type - Total 1 Types 1/0/0/0/0/0/0/0/0 Lore% 32 Gallery% 53 Achievement% 46 Wizard Run 0 Options --------- ASCII 0 Keyboard 0 Movement Mouse Keybinds 0 Fullscreen 1 Font 18/SmallcapsGlow Map View 76x50 Tactical HUD 1 Map Filters NONE Filters NONE Steam 1 RUN: 5cff2a56-6517-425c-9a29-2c6ce411fbcd